fUST/lending_fUST_20241103
["ID","MTS","AMOUNT","RATE_DAILY","PERIOD"]
[341187150,1730568638896,-500.0,0.00021916,2]
[341187151,1730568638906,-500.0,0.00021916,2]
[341187152,1730568638915,-500.0,0.00021916,2]
[341187153,1730568638924,-500.0,0.00021916,2]
[341187154,1730568638934,-224.70324504,0.00021916,2]
[341187155,1730568638943,-500.0,0.00021916,2]
[341187156,1730568638954,-237.31551433,0.00021916,2]
[341187157,1730568638963,-500.0,0.00021916,2]
[341187158,1730568638972,-500.0,0.00021916,2]
[341187159,1730568638983,-500.0,0.00021916,2]
[341187160,1730568638992,-500.0,0.00021916,2]
[341187161,1730568639002,-500.0,0.00021916,2]
[341187162,1730568639010,-500.0,0.00021916,2]
[341187163,1730568639019,-500.0,0.00021916,2]
[341187164,1730568639029,-500.0,0.00021916,2]
[341187165,1730568639042,-500.0,0.00021916,2]
[341187166,1730568639051,-500.0,0.00021916,2]
[341187167,1730568639060,-500.0,0.00021916,2]
[341187168,1730568639069,-500.0,0.00021916,2]
[341187169,1730568639078,-500.0,0.00021916,2]
[341187170,1730568639087,-500.0,0.00021916,2]
[341187171,1730568639096,-500.0,0.00021916,2]
[341187172,1730568639110,-500.0,0.00021916,2]
[341187173,1730568639119,-500.0,0.00021916,2]
[341187174,1730568639129,-500.0,0.00021916,2]
[341187175,1730568639138,-500.0,0.00021916,2]
[341187176,1730568639147,-500.0,0.00021916,2]
[341187177,1730568639156,-486.08945213,0.00021916,2]
[341187178,1730568639169,-13.91054787,0.00021916,2]
[341187179,1730568639178,-500.0,0.00021916,2]
[341187180,1730568639187,-489.69269668,0.00021916,2]
[341187205,1730568643655,-10.30730332,0.00021916,2]
[341187206,1730568643665,-500.0,0.00021916,2]
[341187207,1730568643675,-500.0,0.00021916,2]
[341187208,1730568643685,-496.74839577,0.00021916,2]
[341187209,1730568643695,-500.0,0.00021916,2]
[341187210,1730568643705,-500.0,0.00021916,2]
[341187211,1730568643715,-500.0,0.00021916,2]
[341187212,1730568643725,-500.0,0.00021916,2]
[341187213,1730568643735,-500.0,0.00021916,2]
[341187214,1730568643746,-500.0,0.00021916,2]
[341187215,1730568643757,-500.0,0.00021916,2]
[341187216,1730568643766,-500.0,0.00021916,2]
[341187217,1730568643776,-500.0,0.00021916,2]
[341187218,1730568643786,-500.0,0.00021916,2]
[341187219,1730568643795,-500.0,0.00021916,2]
[341187220,1730568643805,-500.0,0.00021916,2]
[341187221,1730568643815,-500.0,0.00021916,2]
[341187222,1730568643825,-500.0,0.00021916,2]
[341187223,1730568643835,-500.0,0.00021916,2]
[341187224,1730568643845,-500.0,0.00021916,2]
[341187225,1730568643855,-500.0,0.00021916,2]
[341187226,1730568643865,-500.0,0.00021916,2]
[341187227,1730568643874,-500.0,0.00021916,2]
[341187228,1730568643884,-44.32123442,0.00021916,2]
[341187231,1730568646673,-455.67876558,0.00021916,2]
[341187232,1730568646684,-500.0,0.00021916,2]
[341187233,1730568646695,-500.0,0.00021916,2]
[341187234,1730568646704,-500.0,0.00021916,2]
[341187235,1730568646714,-500.0,0.00021916,2]
[341187236,1730568646723,-500.0,0.00021916,2]
[341187237,1730568646733,-368.33319833,0.00021916,2]
[341187238,1730568646742,-500.0,0.00021916,2]
[341187239,1730568646752,-500.0,0.00021916,2]
[341187240,1730568646761,-500.0,0.00021916,2]
[341187241,1730568646771,-500.0,0.00021916,2]
[341187242,1730568646781,-500.0,0.00021916,2]
[341187243,1730568646795,-500.0,0.00021916,2]
[341187244,1730568646805,-500.0,0.00021916,2]
[341187245,1730568646816,-500.0,0.00021916,2]
[341187246,1730568646826,-500.0,0.00021916,2]
[341187247,1730568646835,-500.0,0.00021916,2]
[341187248,1730568646847,-500.0,0.00021916,2]
[341187249,1730568646856,-500.0,0.00021916,2]
[341187250,1730568646867,-500.0,0.00021916,2]
[341187251,1730568646877,-500.0,0.00021916,2]
[341187252,1730568646888,-500.0,0.00021916,2]
[341187253,1730568646898,-500.0,0.00021916,2]
[341187254,1730568646908,-500.0,0.00021916,2]
[341187255,1730568646917,-595.30183329,0.00021916,2]
[341187256,1730568646927,-500.0,0.00021916,2]
[341187257,1730568646937,-305.20799257,0.00021916,2]
[341187258,1730568646947,-169.673,0.00021916,2]
[341187259,1730568646959,-243.91861145,0.00021916,2]
[341187260,1730568646967,-151.0,0.00021917,2]
[341187261,1730568646977,-151.0,0.00021917,2]
[341187262,1730568646987,-151.0,0.00021917,2]
[341187263,1730568646996,-151.0,0.00021917,2]
[341187264,1730568647005,-5000.0,0.00021917,2]
[341187265,1730568647015,-5000.0,0.00021917,2]
[341187266,1730568647025,-151.0,0.00021917,2]
[341187267,1730568647034,-151.0,0.00021917,2]
[341187268,1730568647043,-151.0,0.00021917,2]
[341187269,1730568647053,-153.945328,0.00021917,2]
[341187270,1730568647063,-255.7826267,0.00021918,2]
[341187271,1730568647072,-173.76057,0.00021918,2]
[341187272,1730568647082,-501.46681774,0.00021973,2]
[341187273,1730568647091,-500.0,0.00021973,2]
[341187274,1730568647101,-501.80944572,0.00021973,2]
[341187275,1730568647112,-500.0,0.00021973,2]
[341187276,1730568647121,-500.0,0.00021973,2]
[341187277,1730568647130,-501.83538923,0.00021973,2]
[341187278,1730568647143,-500.0,0.00021973,2]
[341187279,1730568647153,-500.0,0.00021973,2]
[341187280,1730568647164,-623.75486662,0.00021973,2]
[341187281,1730568647174,-500.0,0.00021973,2]
[341187282,1730568647183,-500.0,0.00021973,2]
[341187283,1730568647194,-151.0,0.00021973,7]
[341187284,1730568647203,-151.0,0.00022121,7]
[341187285,1730568647212,-151.0,0.00022121,7]
[341187286,1730568647221,-151.0,0.00022121,7]
[341187287,1730568647230,-151.0,0.00022121,7]
[341187288,1730568647240,-163.84314,0.00022121,7]
[341187289,1730568647249,-157.53776,0.00022121,7]
[341187290,1730568647258,-151.0,0.00022121,7]
[341187291,1730568647267,-151.0,0.00022121,7]
[341187292,1730568647277,-151.0,0.00022121,7]
[341187293,1730568647286,-151.0,0.00022121,7]
[341187294,1730568647295,-151.0,0.00022121,7]
[341187295,1730568647305,-225.988592,0.00022121,7]
[341187296,1730568647313,-151.0,0.00022121,7]
[341187297,1730568647323,-151.0,0.00022121,7]
[341187298,1730568647332,-151.0,0.00022121,7]
[341187299,1730568647341,-276.2737945,0.00022121,7]
[341187300,1730568647351,-151.0,0.00022121,7]
[341187301,1730568647361,-151.0,0.00022121,7]
[341187302,1730568647370,-152.035044,0.00022196,7]
[341187303,1730568647380,-176.26,0.00022223,2]
[341187304,1730568647389,-5000.0,0.00022249,2]
[341187305,1730568647399,-5000.0,0.00022249,2]
[341187306,1730568647408,-5000.0,0.00022249,2]
[341187307,1730568647417,-152.975398,0.0002225,7]
[341187308,1730568647426,-151.0,0.0002225,7]
[341187309,1730568647437,-151.0,0.0002225,7]
[341187310,1730568647447,-151.0,0.0002225,7]
[341187311,1730568647456,-151.0,0.0002225,7]
[341187312,1730568647466,-151.0,0.0002225,7]
[341187313,1730568647476,-151.0,0.0002225,7]
[341187314,1730568647485,-151.0,0.0002225,7]
[341187315,1730568647495,-151.0,0.0002225,7]
[341187316,1730568647508,-161.769991,0.00022251,7]
[341187317,1730568647519,-151.0,0.00022251,7]
[341187318,1730568647528,-222.315844,0.00022251,7]
[341187319,1730568647538,-151.0,0.00022251,7]
[341187320,1730568647547,-500.86409177,0.00022273,2]
[341187321,1730568647556,-500.0,0.00022273,2]
[341187322,1730568647566,-593.93411774,0.00022273,2]
[341187323,1730568647576,-176.26,0.00022287,2]
[341187324,1730568647586,-264.475776,0.00022297,7]
[341187325,1730568647599,-151.0,0.00022297,7]
[341187326,1730568647609,-420.0,0.00022577,2]
[341187327,1730568647619,-151.0,0.00022825,7]
[341187328,1730568647629,-151.0,0.00022825,7]
[341187329,1730568647639,-420.0,0.00022825,2]
[341187330,1730568647649,-5000.0,0.00022991,2]
[341187331,1730568647659,-151.0,0.00022992,7]
[341187332,1730568647668,-906.16141476,0.00023342,2]
[341187333,1730568647681,-93.83858524,0.00023342,2]
[341187334,1730568647691,-151.0,0.00023444,7]
[341187335,1730568647701,-176.332494,0.00023444,7]
[341187336,1730568647710,-40.64103399,0.00023445,2]
[341187337,1730568647727,-151.0,0.00021917,2]
[341187338,1730568647736,-110.35896601,0.00023445,2]
[341187339,1730568647746,-151.0,0.00023854,7]
[341187340,1730568647756,-52.0256718,0.00024161,7]
[341187341,1730568647769,-98.9743282,0.00024161,7]
[341187342,1730568647778,-587.0,0.00024565,2]
[341187343,1730568647788,-282.323668,0.00024657,7]
[341187344,1730568647798,-331.7020038,0.00024657,2]
[341187352,1730569245487,250.407955,0.00020017,2]
[341187356,1730569597711,228.158672,0.00013973,2]
[341187372,1730569799599,250.4079567,0.00020094,2]
[341187414,1730569832774,-228.158672,0.00020447,2]
[341187416,1730569832784,-300.0,0.00020851,2]
[341187418,1730569832794,-300.0,0.00020851,2]
[341187420,1730569832803,-21973.71097959,0.00020852,2]
[341187423,1730569832815,-2926.28902041,0.00020852,2]
[341187434,1730569832913,-4658.47526805,0.00021039,2]
[341187436,1730569832923,-3891.96107178,0.00021193,2]
[341187438,1730569832933,-158.589889,0.00021292,2]
[341187441,1730569832944,-158.589889,0.00021378,2]
[341187443,1730569832953,-158.589889,0.00021463,2]
[341187445,1730569832962,-158.589889,0.00021549,2]
[341187447,1730569832971,-158.589889,0.00021634,2]
[341187449,1730569832981,-158.589889,0.00021719,2]
[341187451,1730569832990,-158.589889,0.00021805,2]
[341187453,1730569832999,-194.311072,0.0002185,2]
[341187455,1730569833008,-173.17867028,0.00021874,2]
[341187457,1730569833017,-158.589889,0.0002189,2]
[341187459,1730569833026,-162.61240763,0.00021917,2]
[341187461,1730569833037,-5000.0,0.00021917,2]
[341187463,1730569833047,-4668.2979962,0.00021917,2]
[341187465,1730569833056,-158.589889,0.00021975,2]
[341187467,1730569833066,-158.589889,0.00022061,2]
[341187469,1730569833075,-158.589889,0.00022146,2]
[341187471,1730569833084,-430.10509105,0.00022177,2]
[341187473,1730569833093,-500.0,0.00022177,2]
[341187475,1730569833102,-500.0,0.00022177,2]
[341187477,1730569833113,-500.0,0.00022177,2]
[341187479,1730569833122,-500.0,0.00022177,2]
[341187481,1730569833131,-158.589889,0.00022231,2]
[341187483,1730569833141,-500.0,0.00022267,2]
[341187485,1730569833151,-158.589889,0.00022317,2]
[341187487,1730569833160,-158.589889,0.00022402,2]
[341187489,1730569833170,-420.0,0.00022685,2]
[341187491,1730569833180,-500.0,0.0002275,2]
[341187493,1730569833190,-420.0,0.00022936,2]
[341187495,1730569833199,-1000.0,0.00023637,2]
[341187497,1730569833209,-300.0,0.00024,2]
[341187499,1730569833218,-3891.96107176,0.00024151,2]
[341187501,1730569833227,-6572.99092607,0.00024548,2]
[341187503,1730569833237,-151.0,0.00024658,3]
[341187505,1730569833247,-151.0,0.00024658,7]
[341187507,1730569833256,-151.0,0.00024658,7]
[341187509,1730569833265,-587.0,0.0002468,2]
[341187511,1730569833275,-587.0,0.0002523,2]
[341187512,1730569833286,-173.17867028,0.00025955,2]
[341187513,1730569833295,-1500.0,0.00026141,2]
[341187514,1730569833304,-7.99794756,0.0002685,2]
[341187519,1730569838937,-193.03505715,0.00021916,2]
[341187520,1730569838960,-500.0,0.00021916,2]
[341187521,1730569838976,-610.74982175,0.00021916,2]
[341187522,1730569838988,-500.0,0.00021916,2]
[341187523,1730569838999,-500.0,0.00021916,2]
[341187524,1730569839013,-500.0,0.00021916,2]
[341187525,1730569839027,-500.0,0.00021916,2]
[341187526,1730569839041,-500.0,0.00021916,2]
[341187527,1730569839054,-500.0,0.00021916,2]
[341187528,1730569839067,-500.0,0.00021916,2]
[341187529,1730569839080,-191.63369389,0.00021916,2]
[341187530,1730569839093,-500.0,0.00021916,2]
[341187531,1730569839104,-586.83331983,0.00021916,2]
[341187532,1730569839117,-500.0,0.00021916,2]
[341187533,1730569839130,-500.0,0.00021916,2]
[341187534,1730569839142,-500.0,0.00021916,2]
[341187535,1730569839155,-500.0,0.00021916,2]
[341187536,1730569839167,-500.0,0.00021916,2]
[341187537,1730569839178,-500.0,0.00021916,2]
[341187538,1730569839190,-500.0,0.00021916,2]
[341187539,1730569839204,-500.0,0.00021916,2]
[341187540,1730569839217,-500.0,0.00021916,2]
[341187541,1730569839229,-500.0,0.00021916,2]
[341187542,1730569839241,-500.0,0.00021916,2]
[341187543,1730569839255,-500.0,0.00021916,2]
[341187544,1730569839267,-500.0,0.00021916,2]
[341187545,1730569839278,-523.60070715,0.00021916,2]
[341187546,1730569839289,-500.0,0.00021916,2]
[341187547,1730569839301,-500.0,0.00021916,2]
[341187548,1730569839311,-500.0,0.00021916,2]
[341187549,1730569839321,-500.0,0.00021916,2]
[341187550,1730569839334,-500.0,0.00021916,2]
[341187551,1730569839348,-500.0,0.00024658,2]
[341187552,1730569839358,-500.0,0.00024658,2]
[341187553,1730569839370,-500.0,0.00024658,2]
[341187554,1730569839381,-500.0,0.00024658,2]
[341187555,1730569839392,-500.0,0.00024658,2]
[341187556,1730569839404,-208.30145997,0.00024658,2]
[341187557,1730569839415,-815.00205244,0.0002685,2]
[341187558,1730569839426,-228.158672,0.00026921,2]
[341187559,1730569839437,-155.203,0.0002699,2]
[341187560,1730569839450,-160.0,0.00027,2]
[341187561,1730569839461,-3891.96107176,0.00027109,2]
[341187562,1730569839473,-151.0,0.00027397,2]
[341187563,1730569839485,-528.0,0.00027558,2]
[341187564,1730569839497,-2394.0,0.00027558,2]
[341187565,1730569839507,-1142.0,0.00027558,2]
[341187566,1730569839516,-153.0,0.00027616,2]
[341187567,1730569839526,-153.0,0.00027616,2]
[341187568,1730569839536,-153.0,0.00027616,2]
[341187569,1730569839553,-240.9081501,0.00027616,2]
[341187570,1730569839565,-823.0,0.00027753,2]
[341187571,1730569839577,-155.246,0.0002865,30]
[341187572,1730569839588,-211.0200078,0.00028685,2]
[341187573,1730569839599,-151.0,0.00029212,7]
[341187574,1730569839612,-1152.0,0.00029212,2]
[341187575,1730569839621,-155.202,0.0002932,7]
[341187576,1730569839631,-2000.0,0.00029385,5]
[341187577,1730569839642,-248.895447,0.00029671,2]
[341187578,1730569839654,-540.89673155,0.00029909,2]
[341187579,1730569839666,-213.6455948,0.00029909,2]
[341187580,1730569839677,-214.78,0.0002991,10]
[341187581,1730569839688,-4667.00810659,0.0002992,2]
[341187713,1730570232122,193.934871,0.00013973,2]
[341187762,1730571031828,-193.934871,0.00020447,2]
[341187763,1730571031838,-190.97222222,0.00024791,2]
[341187764,1730571031847,-166.666666,0.00025162,2]
[341187765,1730571031857,-1475.385179,0.00025319,2]
[341187766,1730571031867,-166.666666,0.00025349,2]
[341187767,1730571031876,-166.666666,0.00025537,2]
[341187768,1730571031886,-1283.422975,0.00025698,2]
[341187769,1730571031895,-166.666666,0.00025724,2]
[341187770,1730571031905,-166.666666,0.00025911,2]
[341187771,1730571031914,-300.0,0.00025917,2]
[341187772,1730571031924,-300.0,0.00025917,2]
[341187773,1730571031934,-24900.0,0.00025918,2]
[341187774,1730571031943,-2536.69231959,0.00025999,2]
[341187775,1730571031953,-1475.385179,0.00026003,2]
[341187776,1730571031962,-166.666666,0.00026099,2]
[341187777,1730571031971,-3334.67028973,0.00026099,2]
[341187778,1730571031981,-199.661888,0.00026237,2]
[341187779,1730571031991,-166.666666,0.00026286,2]
[341187780,1730571032000,-199.661888,0.00026368,2]
[341187781,1730571032010,-166.666666,0.00026473,2]
[341187782,1730571032019,-182.41486604,0.00026645,2]
[341187783,1730571032028,-1475.385179,0.00026688,2]
[341187784,1730571032038,-184.733944,0.00026745,2]
[341187785,1730571032047,-500.0,0.00026767,2]
[341187786,1730571032057,-500.0,0.0002686,2]
[341187787,1730571032066,-193.934871,0.00026921,2]
[341187788,1730571032075,-198.0,0.00027,2]
[341187789,1730571032085,-412.4735354,0.00027616,2]
[341187790,1730571032096,-198.0,0.00027671,2]
[341187791,1730571032311,-420.0,0.00028051,2]
[341187792,1730571032321,-500.0,0.00028081,2]
[341187793,1730571032331,-231.87036887,0.00028081,2]
[341187794,1730571032340,-300.92238444,0.00028081,2]
[341187795,1730571032350,-500.0,0.00028081,2]
[341187796,1730571032360,-244.96327292,0.00028082,2]
[341187797,1730571032369,-250.0,0.00028084,2]
[341187798,1730571032378,-528.0,0.00028084,2]
[341187799,1730571032387,-1038.30456016,0.00028084,2]
[341187800,1730571032399,-1355.69543984,0.00028084,2]
[341187801,1730571032409,-463.80456016,0.00028084,2]
[341187802,1730571032420,-678.19543984,0.00028084,2]
[341187803,1730571032431,-28.53422917,0.00028137,5]
[341187804,1730571032442,-971.46577083,0.00028137,5]
[341187805,1730571032452,-975.90249914,0.00028271,2]
[341187818,1730571037931,-391.51118968,0.00028081,2]
[341187820,1730571037941,-1560.78982042,0.00028271,2]
[341187822,1730571037951,-182.41486602,0.00028273,2]
[341187823,1730571038048,-420.0,0.00028509,2]
[341187824,1730571038058,-198.0,0.00028767,2]
[341187825,1730571038068,-153.0,0.00029671,2]
[341187826,1730571038077,-267.8716148,0.00029671,2]
[341187827,1730571038086,-153.0,0.00029671,2]
[341187828,1730571038096,-153.0,0.00029671,2]
[341187829,1730571038107,-153.0,0.00029671,2]
[341187830,1730571038117,-153.0,0.00029671,2]
[341187831,1730571038127,-238.5650816,0.00029671,2]
[341187832,1730571038137,-211.079098,0.00029671,2]
[341187833,1730571038147,-211.079098,0.00029671,2]
[341187834,1730571038157,-211.079098,0.00029671,2]
[341187835,1730571038166,-211.079098,0.00029671,2]
[341187836,1730571038175,-211.079098,0.00029671,2]
[341187837,1730571038185,-211.079098,0.00029671,2]
[341187838,1730571038196,-211.079098,0.00029671,2]
[341187839,1730571038206,-211.079098,0.00029671,2]
[341187840,1730571038216,-303.0898104,0.00029671,2]
[341187841,1730571038226,-211.079098,0.00029671,2]
[341187842,1730571038238,-303.0898104,0.00029671,2]
[341187843,1730571038251,-211.079098,0.00029671,2]
[341187844,1730571038261,-211.079098,0.00029671,2]
[341187845,1730571038271,-32.9354101,0.00029671,2]
[341187856,1730571039892,-270.1544003,0.00029671,2]
[341187857,1730571039903,-211.079098,0.00029671,2]
[341187858,1730571039914,-182.41486602,0.000299,2]
[341187859,1730571039925,-150.35631605,0.00029929,2]
[341187860,1730571039935,-226.74212545,0.00029929,2]
[341187861,1730571039945,-151.0,0.0002997,7]
[341187862,1730571039956,-151.0,0.0002998,7]
[341187863,1730571039966,-196.2581841,0.00029989,2]
[341187864,1730571039978,-182.36952798,0.00029989,2]
[341187865,1730571039988,-368.28492115,0.0003,2]
[341187866,1730571039998,-164.5245,0.0003,2]
[341187867,1730571040007,-218.519,0.0003,2]
[341187868,1730571040017,-400.0,0.0003,3]
[341187869,1730571040027,-300.0,0.0003,2]
[341187870,1730571040037,-343.63925,0.0003,2]
[341187871,1730571040049,-61038.0,0.0003,15]
[341187872,1730571040060,-273.0,0.0003,2]
[341187873,1730571040070,-3788.1702403,0.00030036,2]
[341187874,1730571040080,-1914.44372349,0.000301,120]
[341187875,1730571040089,-42256.22,0.00030126,10]
[341187876,1730571040099,-500.0,0.00030136,4]
[341187877,1730571040112,-409.01654304,0.00030136,4]
[341187878,1730571040121,-500.0,0.00030136,4]
[341187879,1730571040131,-500.0,0.00030136,4]
[341187880,1730571040140,-500.0,0.00030136,4]
[341187881,1730571040151,-500.0,0.00030136,4]
[341187882,1730571040161,-500.0,0.00030136,4]
[341187883,1730571040170,-508.97520643,0.00030136,4]
[341187884,1730571040181,-500.0,0.00030136,4]
[341187885,1730571040191,-500.0,0.00030136,4]
[341187886,1730571040201,-505.95168559,0.00030136,4]
[341187887,1730571040211,-500.0,0.00030136,4]
[341187888,1730571040220,-511.7899279,0.00030136,4]
[341187889,1730571040231,-518.54242753,0.00030136,4]
[341187890,1730571040242,-509.53901461,0.00030136,4]
[341187891,1730571040252,-286.51778674,0.00030136,4]
[341187892,1730571040262,-500.0,0.00030136,4]
[341187893,1730571040272,-500.0,0.00030136,4]
[341187894,1730571040282,-504.88144218,0.00030136,4]
[341187895,1730571040291,-500.19949747,0.00030136,4]
[341187896,1730571040300,-500.0,0.00030136,4]
[341187897,1730571040310,-504.19722138,0.00030136,4]
[341187898,1730571040320,-500.0,0.00030136,4]
[341187899,1730571040330,-500.0,0.00030136,4]
[341187900,1730571040340,-500.0,0.00030136,4]
[341187901,1730571040350,-500.0,0.00030136,4]
[341187902,1730571040359,-500.0,0.00030136,4]
[341187903,1730571040369,-503.99864766,0.00030136,4]
[341187904,1730571040378,-535.97456293,0.00030136,4]
[341187905,1730571040388,-500.0,0.00030136,4]
[341187906,1730571040397,-596.78664689,0.00030136,4]
[341187907,1730571040406,-500.0,0.00030136,4]
[341187908,1730571040415,-548.07799858,0.00030136,4]
[341187909,1730571040424,-500.0,0.00030136,4]
[341187910,1730571040434,-569.7,0.00030136,4]
[341187911,1730571040443,-500.0,0.00030136,4]
[341187912,1730571040452,-500.0,0.00030136,4]
[341187913,1730571040462,-504.40099318,0.00030136,4]
[341187914,1730571040472,-500.0,0.00030136,4]
[341187915,1730571040481,-165.89549068,0.00030136,4]
[341187916,1730571040495,-500.0,0.00030136,4]
[341187917,1730571040505,-500.0,0.00030136,4]
[341187918,1730571040514,-510.25365357,0.00030136,4]
[341187919,1730571040523,-500.0,0.00030136,4]
[341187920,1730571040532,-500.0,0.00030136,4]
[341187921,1730571040544,-500.0,0.00030136,4]
[341187922,1730571040554,-845.35043136,0.00030136,5]
[341187923,1730571040565,-502.11714069,0.00030136,4]
[341187924,1730571040576,-619.29522932,0.00030136,4]
[341187925,1730571040594,-500.0,0.00030136,4]
[341187926,1730571040608,-636.18774139,0.00030136,4]
[341187927,1730571040622,-500.0,0.00030136,4]
[341187928,1730571040635,-500.0,0.00030136,2]
[341187929,1730571040649,-500.0,0.00030136,4]
[341187930,1730571040660,-500.0,0.00030136,4]
[341187931,1730571040671,-500.0,0.00030136,4]
[341187932,1730571040684,-500.0,0.00030136,4]
[341187933,1730571040698,-500.0,0.00030136,4]
[341187934,1730571040710,-500.0,0.00030136,4]
[341187935,1730571040724,-500.0,0.00030136,2]
[341187936,1730571040738,-500.0,0.00030136,4]
[341187937,1730571040752,-500.0,0.00030136,4]
[341187938,1730571040765,-500.0,0.00030136,4]
[341187939,1730571040777,-500.0,0.00030136,4]
[341187940,1730571040791,-448.01651447,0.00030136,4]
[341187941,1730571040807,-500.0,0.00030136,4]
[341187942,1730571040821,-500.0,0.00030136,4]
[341187943,1730571040834,-500.0,0.00030136,4]
[341187944,1730571040846,-500.0,0.00030136,4]
[341187945,1730571040860,-500.0,0.00030136,4]
[341187946,1730571040875,-500.0,0.00030136,4]
[341187947,1730571040886,-472.26,0.00030136,4]
[341187948,1730571040898,-500.0,0.00030136,4]
[341187949,1730571040910,-500.0,0.00030136,4]
[341187950,1730571040925,-514.59836537,0.00030136,4]
[341187951,1730571040936,-228.4432777,0.00030136,4]
[341187952,1730571040947,-500.0,0.00030136,4]
[341187953,1730571040959,-500.0,0.00030136,4]
[341187954,1730571040969,-500.0,0.00030136,4]
[341187955,1730571040979,-500.2,0.00030136,4]
[341187956,1730571040990,-500.0,0.00030136,4]
[341187957,1730571041002,-788.87,0.00030136,4]
[341187958,1730571041013,-500.0,0.00030136,4]
[341187959,1730571041027,-500.0,0.00030136,4]
[341187960,1730571041039,-387.64787242,0.00030136,4]
[341187961,1730571041053,-2190.77,0.00030136,4]
[341187962,1730571041064,-500.0,0.00030136,4]
[341187963,1730571041075,-500.0,0.00030136,4]
[341187964,1730571041087,-500.0,0.00030136,4]
[341187965,1730571041099,-500.0,0.00030136,4]
[341187966,1730571041114,-500.0,0.00030136,4]
[341187967,1730571041127,-500.0,0.00030136,4]
[341187968,1730571041138,-621.6,0.00030136,4]
[341187969,1730571041150,-500.0,0.00030136,4]
[341187970,1730571041160,-500.0,0.00030136,4]
[341187971,1730571041170,-500.0,0.00030136,4]
[341187972,1730571041181,-1213.29,0.00030136,4]
[341187973,1730571041190,-500.0,0.00030136,4]
[341187974,1730571041201,-507.89734265,0.00030136,4]
[341187975,1730571041212,-500.0,0.00030136,4]
[341187976,1730571041223,-500.0,0.00030136,4]
[341187977,1730571041236,-507.55565617,0.00030136,4]
[341187978,1730571041249,-513.89169892,0.00030136,4]
[341187979,1730571041261,-500.0,0.00030136,4]
[341187980,1730571041272,-250.31478143,0.00030136,4]
[341187981,1730571041283,-500.0,0.00030136,4]
[341187982,1730571041296,-613.4690976,0.00030136,4]
[341187983,1730571041308,-516.13223049,0.00030136,4]
[341187984,1730571041320,-500.0,0.00030136,4]
[341187985,1730571041334,-500.0,0.00030136,4]
[341187986,1730571041346,-548.7319602,0.00030136,4]
[341187987,1730571041356,-500.0,0.00030136,4]
[341187988,1730571041367,-500.0,0.00030136,4]
[341187989,1730571041377,-500.0,0.00030136,4]
[341187990,1730571041387,-500.0,0.00030136,4]
[341187991,1730571041398,-500.0,0.00030136,4]
[341187992,1730571041408,-500.0,0.00030136,4]
[341187993,1730571041419,-500.0,0.00030136,4]
[341187994,1730571041430,-500.74778396,0.00030136,4]
[341187995,1730571041441,-505.47015516,0.00030136,4]
[341187996,1730571041453,-500.0,0.00030136,4]
[341187997,1730571041465,-1281.87,0.00030136,4]
[341187998,1730571041477,-500.0,0.00030136,4]
[341187999,1730571041489,-500.0,0.00030136,4]
[341188000,1730571041500,-500.0,0.00030136,4]
[341188001,1730571041512,-500.0,0.00030136,4]
[341188002,1730571041523,-500.0,0.00030136,4]